fUSD/lending_fUSD_20241122
["ID","MTS","AMOUNT","RATE_DAILY","PERIOD"]
[342990149,1732261838167,-319.36138403,0.0009284,2]
[342990152,1732261838177,-174.988,0.00094502,120]
[342990153,1732261838186,-4056.72410673,0.00095,120]
[342990154,1732261838195,-103110.20048542,0.00095,120]
[342990157,1732261839719,-157.0,0.0009,60]
[342990158,1732261839729,-26107.15932908,0.00095,120]
[342990159,1732261839740,-1545.39212855,0.00095,120]
[342990160,1732261839752,-2482.56322458,0.00095,120]
[342990161,1732261839763,-3771.6411367,0.00095,120]
[342990162,1732261839774,-496.74136157,0.00095,120]
[342990168,1732261842785,-474.86048263,0.00064999,120]
[342990169,1732261842796,-96028.70810561,0.00095,120]
[342990170,1732261842808,-6705.93499638,0.00095,120]
[342990171,1732261842819,-30591.27883,0.00095,120]
[342990172,1732261842843,-11.07654348,0.00095,120]
[342990173,1732261842854,-24819.5,0.00095,120]
[342990174,1732261842865,-4978.18346744,0.00095,120]
[342990175,1732261842876,-148948.80855804,0.00095,120]
[342990176,1732261842888,-644.059995,0.00095,120]
[342990177,1732261842899,-314.71,0.00095,120]
[342990178,1732261842936,-3857.20697887,0.00095,120]
[342990185,1732261845647,-500.0,0.00064999,120]
[342990186,1732261845657,-500.0,0.00064999,120]
[342990187,1732261845667,-500.0,0.00064999,120]
[342990188,1732261845676,-500.0,0.00064999,120]
[342990189,1732261845686,-261.49,0.00064999,120]
[342990190,1732261845695,-248.7,0.00068677,120]
[342990191,1732261845704,-150.0,0.00071677,120]
[342990192,1732261845714,-37122.10685745,0.00095,120]
[342990193,1732261845725,-1687.153,0.00095,120]
[342990194,1732261845736,-450.87232292,0.00095,120]
[342990195,1732261845798,-31.01169368,0.00095,120]
[342990196,1732261845809,-5633.91404603,0.00095,120]
[342990197,1732261845854,-990.69972,0.00095,120]
[342990198,1732261845866,-1349.07745121,0.00095,120]
[342990203,1732261848204,1685.61922184,0.000498,120]
[342990204,1732261848242,3471.1356068,0.000498,120]
[342990205,1732261848265,1589.49947227,0.000498,120]
[342990206,1732261848287,300.14934812,0.000498,120]
[342990207,1732261848310,1702.84782063,0.000498,120]
[342990208,1732261848333,1739.49362007,0.000498,120]
[342990209,1732261848357,973.97338493,0.000498,120]
[342990210,1732261848379,1705.2,0.000498,120]
[342990211,1732261848401,1372.98563448,0.000498,120]
[342990218,1732262201386,-237.33114593,0.000498,120]
[342990219,1732262201414,-150.0,0.0005,120]
[342990220,1732262201437,-7010.192956,0.00064574,30]
[342990221,1732262201461,-600.0,0.00064899,12]
[342990222,1732262201487,-200.0,0.00064899,120]
[342990223,1732262201511,-2119.1063,0.000649,2]
[342990224,1732262201535,-580.4231,0.000649,2]
[342990225,1732262201559,-2050.2684,0.000649,2]
[342990226,1732262201583,-15894.1635,0.000649,2]
[342990227,1732262201608,-382.4827,0.000649,2]
[342990228,1732262201634,-1000.0,0.000649,30]
[342990229,1732262201658,-1515.6988,0.000649,2]
[342990230,1732262201682,-500.24177612,0.00064999,120]
[342990231,1732262201706,-500.0,0.00064999,120]
[342990232,1732262201729,-500.0,0.00064999,120]
[342990233,1732262201753,-500.0,0.00064999,120]
[342990234,1732262201777,-500.0,0.00064999,120]
[342990235,1732262201801,-457.43,0.00064999,120]
[342990236,1732262201826,-500.0,0.00064999,120]
[342990237,1732262201850,-204.2,0.00064999,120]
[342990238,1732262201875,-500.0,0.00064999,120]
[342990239,1732262201902,-500.0,0.00064999,120]
[342990240,1732262201927,-500.0,0.00064999,120]
[342990241,1732262201951,-500.0,0.00064999,120]
[342990242,1732262201976,-500.0,0.00064999,120]
[342990243,1732262202003,-500.0,0.00064999,120]
[342990244,1732262202034,-500.0,0.00064999,120]
[342990245,1732262202058,-500.0,0.00064999,120]
[342990246,1732262202082,-500.0,0.00064999,120]
[342990247,1732262202107,-500.0,0.00064999,120]
[342990248,1732262202133,-200.0,0.00064999,120]
[342990249,1732262202157,-500.0,0.00064999,120]
[342990250,1732262202181,-500.0,0.00064999,120]
[342990251,1732262202205,-500.0,0.00064999,120]
[342990252,1732262220942,500.0,0.00064999,120]
[342990253,1732262221197,500.0,0.00064999,120]
[342990254,1732262221485,168.57204796,0.00064999,120]
[342990255,1732262241220,500.0,0.00064999,120]
[342990256,1732262241468,639.66,0.00064999,120]
[342990257,1732262267300,500.0,0.00064999,120]
[342990258,1732262267668,500.0,0.00064999,120]
[342990259,1732262267794,209.276393,0.00064999,120]
[342990260,1732262268277,306.54,0.00064999,120]
[342990261,1732262272499,500.0,0.00064999,120]
[342990262,1732262280161,411.55,0.00064999,120]
[342990263,1732262557717,250.0,0.00031,2]
[342990264,1732262558799,300.0,0.00033,2]
[342990265,1732262569254,-1000.0,0.000498,120]
[342990266,1732262738101,-179.02088554,0.00040995,2]
[342990267,1732262808606,-4992.35712716,0.00040996,2]
[342990268,1732262808629,-550.0,0.00041095,5]
[342990269,1732262808655,-161.73,0.00041096,2]
[342990270,1732262808679,-500.0,0.00041096,2]
[342990271,1732262808705,-500.0,0.00041096,2]
[342990272,1732262808727,-500.0,0.00041096,2]
[342990273,1732262808750,-500.0,0.00041096,2]
[342990274,1732262808772,-500.0,0.00041096,2]
[342990275,1732262808796,-401.00574947,0.000498,120]
[342990277,1732262947105,-171.70649862,0.00054,60]
[342990278,1732262947127,-500.0,0.00054795,120]
[342990279,1732262949316,659.41911985,0.0005,2]
[342990280,1732262949338,24073.58088015,0.0005,2]
[342990313,1732263031872,-374.47042695,0.00064,120]
[342990314,1732263031912,-1075.8299989,0.00064,120]
[342990315,1732263031927,-27063.98960521,0.00064,120]
[342990316,1732263031937,-151.25,0.000649,30]
[342990317,1732263031947,-560.01,0.00064999,120]
[342990318,1732263031957,-551.21336678,0.00064999,120]
[342990319,1732263031966,-500.0,0.00064999,120]
[342990320,1732263031975,-500.0,0.00064999,120]
[342990321,1732263031986,-500.0,0.00064999,120]
[342990322,1732263031995,-500.0,0.00064999,120]
[342990323,1732263032005,-500.0,0.00064999,120]
[342990324,1732263032015,-500.0,0.00064999,120]
[342990325,1732263032024,-500.0,0.00064999,120]
[342990326,1732263032034,-500.0,0.00064999,120]
[342990327,1732263032043,-500.0,0.00064999,120]
[342990328,1732263032053,-500.0,0.00064999,120]
[342990329,1732263032062,-500.0,0.00064999,120]
[342990330,1732263032071,-500.0,0.00064999,120]
[342990331,1732263032081,-500.0,0.00064999,120]
[342990332,1732263032090,-500.0,0.00064999,120]
[342990333,1732263032100,-500.0,0.00064999,120]
[342990334,1732263032109,-500.0,0.00064999,120]
[342990335,1732263032119,-418.48789283,0.00064999,120]
[342990336,1732263032129,-5159.41,0.00067177,120]
[342990337,1732263032138,-174.98805564,0.00089671,120]
[342990338,1732263032148,-993.85039279,0.00089781,7]
[342990339,1732263032158,-1429.99664206,0.00089781,7]
[342990340,1732263032167,-640.58,0.0009315,120]
[342990341,1732263032177,-2200.0,0.00093151,120]
[342990342,1732263032186,-171.67,0.00093404,2]
[342990343,1732263032195,-1000.0,0.00093706,120]
[342990344,1732263032204,-23900.0,0.00093964,30]
[342990345,1732263032214,-500.0,0.0009405,120]
[342990346,1732263032223,-250.0,0.00094131,120]
[342990347,1732263032234,-154.7,0.0009459,30]
[342990348,1732263032247,-7974.0616,0.000946,120]
[342990349,1732263032256,-2852.29985776,0.0009468,2]
[342990350,1732263032265,-625.64645944,0.0009469,15]
[342990351,1732263032275,-154.7,0.00094887,30]
[342990352,1732263032284,-154.7,0.0009489,30]
[342990353,1732263032293,-154.7,0.0009489,30]
[342990354,1732263032400,-154.7,0.0009489,30]
[342990355,1732263032410,-154.7,0.0009489,30]
[342990356,1732263032419,-154.7,0.0009489,30]
[342990357,1732263032428,-154.7,0.0009489,30]
[342990358,1732263032438,-154.7,0.0009489,30]
[342990359,1732263032447,-154.7,0.0009489,30]
[342990360,1732263032456,-154.7,0.0009489,30]
[342990361,1732263032466,-154.7,0.0009489,30]
[342990362,1732263032475,-154.7,0.0009489,30]
[342990363,1732263032485,-154.7,0.0009489,30]
[342990364,1732263032494,-154.7,0.0009489,30]
[342990365,1732263032503,-1732.0,0.00094897,118]
[342990366,1732263032513,-1755.5052,0.000949,120]
[342990367,1732263032522,-198.6313,0.000949,120]
[342990368,1732263032531,-1000.0,0.000949,120]
[342990369,1732263032540,-10519.2836,0.000949,30]
[342990370,1732263032550,-92267.5958,0.000949,120]
[342990371,1732263032559,-300.0,0.000949,34]
[342990372,1732263032572,-201.43263337,0.000949,66]
[342990373,1732263032581,-161.41471332,0.000949,28]
[342990374,1732263032591,-150.99,0.0009499,120]
[342990375,1732263032600,-154.7,0.0009499,30]
[342990376,1732263032610,-154.7,0.0009499,30]
[342990377,1732263032620,-154.7,0.0009499,30]
[342990378,1732263032630,-154.7,0.0009499,30]
[342990379,1732263032639,-154.7,0.0009499,30]
[342990380,1732263032648,-500.0,0.00094999,31]
[342990381,1732263032657,-381.73419001,0.00094999,31]
[342990382,1732263032667,-498321.99976799,0.00095,120]
[342990383,1732263032677,-500.0,0.00095,120]
[342990384,1732263032686,-500.0,0.00095,120]
[342990385,1732263032696,-250.0,0.00095085,120]
[342990386,1732263032706,-625.64645941,0.00095269,15]
[342990387,1732263032715,-160.0,0.00095334,120]
[342990388,1732263032724,-625.64645941,0.00095848,15]
[342990389,1732263032735,-2500.0,0.00095911,120]
[342990390,1732263032744,-299.6993407,0.0009604,120]
[342990391,1732263032754,-431.59,0.00096041,60]
[342990392,1732263032766,-625.64645941,0.00096427,15]
[342990393,1732263032775,-500.0,0.0009655,120]
[342990394,1732263032785,-500.0,0.00096999,120]
[342990395,1732263032794,-41684.34816519,0.00097,120]
[342990396,1732263032804,-625.64645941,0.00097006,15]
[342990397,1732263032813,-10000.0,0.00097333,120]
[342990398,1732263032822,-319.36138403,0.000974,2]
[342990399,1732263032831,-625.64645941,0.00097584,15]
[342990400,1732263032841,-377.23729805,0.00097687,120]
[342990401,1732263032851,-377.23729805,0.0009772,120]
[342990402,1732263032861,-377.23729805,0.00097737,120]
[342990403,1732263032870,-6000.0,0.00097998,120]
[342990404,1732263032879,-61973.33046821,0.00098,120]
[342990405,1732263032889,-625.64645941,0.00098163,15]
[342990406,1732263032898,-500.0,0.0009863,120]
[342990407,1732263032908,-500.0,0.0009863,120]
[342990408,1732263032917,-280.134077,0.0009863,120]
[342990409,1732263032927,-500.0,0.0009863,120]
[342990410,1732263032935,-647.86097387,0.0009863,120]
[342990411,1732263032945,-500.0,0.0009863,120]
[342990412,1732263032954,-195.56,0.0009863,120]
[342990413,1732263032963,-500.0,0.0009863,120]
[342990414,1732263032972,-306.27484502,0.0009863,120]
[342990415,1732263032982,-500.0,0.0009863,120]
[342990416,1732263032991,-500.0,0.0009863,120]
[342990417,1732263033000,-204.80255079,0.0009863,120]
[342990418,1732263033010,-500.0,0.0009863,120]
[342990419,1732263033020,-579.96,0.0009863,120]
[342990420,1732263033030,-500.0,0.0009863,120]
[342990421,1732263033040,-500.0,0.0009863,120]
[342990422,1732263033050,-500.0,0.0009863,120]
[342990423,1732263033060,-500.0,0.0009863,120]
[342990424,1732263033072,-500.0,0.0009863,120]
[342990425,1732263033081,-500.0,0.0009863,120]
[342990426,1732263033092,-500.0,0.0009863,120]
[342990427,1732263033101,-513.15,0.0009863,120]
[342990428,1732263033111,-500.0,0.0009863,120]
[342990429,1732263033120,-500.0,0.0009863,120]
[342990430,1732263033129,-500.0,0.0009863,120]
[342990431,1732263033139,-500.0,0.0009863,120]
[342990432,1732263033148,-500.0,0.0009863,120]
[342990433,1732263033158,-500.0,0.0009863,120]
[342990434,1732263033168,-518.1,0.0009863,120]
[342990435,1732263033179,-500.0,0.0009863,120]
[342990436,1732263033189,-500.0,0.0009863,120]
[342990437,1732263033199,-500.0,0.0009863,120]
[342990438,1732263033209,-366.03648234,0.0009863,120]
[342990439,1732263033218,-500.0,0.0009863,120]
[342990440,1732263033229,-500.0,0.0009863,120]
[342990441,1732263033252,-500.0,0.0009863,120]
[342990442,1732263033263,-247.66,0.0009863,120]
[342990443,1732263033275,-500.0,0.0009863,120]
[342990444,1732263033285,-579.20233022,0.0009863,120]
[342990445,1732263033295,-500.0,0.0009863,120]
[342990446,1732263033305,-292.55930213,0.0009863,120]
[342990447,1732263033317,-500.0,0.0009863,120]
[342990448,1732263033327,-500.0,0.0009863,120]
[342990449,1732263033337,-500.0,0.0009863,120]
[342990450,1732263033346,-500.0,0.0009863,120]
[342990451,1732263033356,-500.0,0.0009863,120]
[342990452,1732263033365,-500.0,0.0009863,120]
[342990453,1732263033375,-524.22571738,0.0009863,120]
[342990454,1732263033385,-403.95550383,0.0009863,120]
[342990455,1732263033395,-625.64645941,0.00098742,15]
[342990456,1732263033405,-600.0,0.000988,36]
[342990457,1732263033415,-1000.0,0.000989,36]
[342990458,1732263033425,-282926.86749835,0.00098996,36]
[342990459,1732263033435,-1150000.0,0.00098996,120]
[342990460,1732263033445,-273.16529311,0.00098999,120]
[342990461,1732263033455,-40552.14272065,0.00099,45]
[342990462,1732263033469,-1186.48681213,0.00099,45]
[342990463,1732263033482,-993.27258,0.00099,45]
[342990464,1732263034687,-1049.48765401,0.00099,45]
[342990465,1732263034700,-285449.5276532,0.00099,45]
[342990471,1732263037672,-213.29,0.0009863,120]
[342990472,1732263037682,-15106.731922,0.00099,45]
[342990473,1732263037694,-16913.349525,0.00099,45]
[342990474,1732263037705,-822.49017547,0.00099,45]
[342990475,1732263037717,-1108.22712119,0.00099,45]
[342990476,1732263037729,-795.39,0.00099,45]
[342990477,1732263037740,-1042.8357821,0.00099,45]
[342990478,1732263037752,-502.5,0.00099,45]
[342990479,1732263037765,-96000.0,0.00099,45]
[342990480,1732263037777,-1194.41762603,0.00099,45]
[342990481,1732263037787,-5780481.53244221,0.00099,45]
[342990482,1732263037869,-91.33750593,0.00099,45]
[342990483,1732263037887,-4041.35419108,0.00099,45]
[342990484,1732263037898,-2403.07979687,0.00099,45]
[342990485,1732263037909,-1002.82719264,0.00099,45]
[342990486,1732263037920,-1941.63468306,0.00099,45]
[342990487,1732263037932,-1887.13760928,0.00099,45]
[342990488,1732263037946,-62518.5979818,0.00099,45]
[342990489,1732263037957,-41865.186,0.00099,45]
[342990490,1732263037968,-17700.50567545,0.00099,45]
[342990491,1732263037980,-12073.477402,0.00099,45]
[342990492,1732263037991,-910.23136851,0.00099,45]
[342990498,1732263039682,-500.0,0.0009863,120]
[342990499,1732263039691,-870.39544,0.00099,45]
[342990500,1732263039703,-3420.68354689,0.00099,45]
[342990501,1732263039788,-337.215,0.00099,45]
[342990502,1732263039895,-344.00554249,0.00099,45]
[342990506,1732263042630,-500.0,0.0009863,120]
[342990507,1732263042640,-500.0,0.0009863,120]
[342990508,1732263042650,-500.0,0.0009863,120]
[342990509,1732263042659,-511.95361227,0.0009863,120]
[342990510,1732263042668,-1242.26506961,0.00099,45]
[342990511,1732263042679,-23413.3509357,0.00099,45]
[342990512,1732263042690,-75922.51375523,0.00099,45]
[342990513,1732263042700,-31395.93993412,0.00099,45]
[342990514,1732263042711,-5655.83895,0.00099,45]
[342990515,1732263042722,-5799.135,0.00099,45]
[342990516,1732263042733,-2537.0,0.00099,45]
[342990517,1732263042744,-3582.977232,0.00099,45]
[342990518,1732263042755,-2697.558454,0.00099,45]
[342990519,1732263042791,-582.71440375,0.00099,45]
[342990520,1732263042847,-237841.85352226,0.00099,45]
[342990528,1732263045687,-1486.76,0.00099,45]
[342990529,1732263045711,-35.5130294,0.00099,45]
[342990530,1732263045722,-8684.77450841,0.00099,45]
[342990531,1732263045735,-5683.46827011,0.00099,45]
[342990532,1732263045747,-1119.89217989,0.00099,45]
[342990533,1732263045793,-1366.3999973,0.00099,45]
[342990534,1732263045849,-1268.16631077,0.00099,45]
[342990535,1732263045861,-1980.0,0.00099,45]
[342990536,1732263045904,-2118654.97388948,0.00099,45]
[342990537,1732263045916,-2721918.22990638,0.00099,45]
[342990538,1732263045927,-21500.0,0.00099,45]
[342990539,1732263045959,-410318.62105047,0.00099,45]
[342990540,1732263045970,-2180.71618016,0.00099,45]
[342990541,1732263045982,-684.558451,0.00099,45]
[342990547,1732263143948,162.08,0.00041096,2]
[342990548,1732263241871,500.0,0.0005,120]
[342990549,1732263420277,1782.23,0.000475,120]
[342990550,1732263430136,205.21662839,0.00041893,2]
[342990551,1732263480956,150.0,0.0005,2]
[342990552,1732263647858,981.70738211,0.000498,120]
[342990553,1732263692050,1934.71,0.0005,2]
[342990554,1732263721996,20210.47510935,0.0005,5]
[342990555,1732263725620,-54789.52489065,0.0005,5]
[342990556,1732263725645,-618.0,0.00054795,120]
[342990557,1732263725668,-245.1978,0.00058681,30]
[342990558,1732263725692,-275.449,0.00058681,116]
[342990559,1732263725715,-151.7,0.00058681,116]
[342990560,1732263725738,-611.4,0.0005999,30]
[342990561,1732263725761,-1312.59342499,0.00059999,120]
[342990562,1732263725786,-450.0,0.00059999,9]
[342990563,1732263725810,-441546.13488436,0.0006,2]
[342990564,1732263767159,-18453.86511564,0.0006,2]
[342990565,1732263767185,-500.0,0.0006,120]
[342990566,1732263767209,-175.06628207,0.00060121,28]
[342990567,1732263767233,-30401.44026973,0.00060221,15]
[342990568,1732263767257,-500.0,0.00060274,120]
[342990569,1732263767280,-827.24695293,0.00060321,2]
[342990570,1732263767303,-1497.6396167,0.00060421,15]
[342990571,1732263767327,-594.19041079,0.00060548,120]
[342990572,1732263767350,-160.59875079,0.00062675,15]
[342990573,1732263767372,-30401.44026965,0.0006463,15]
[342990574,1732263767396,-1497.63961661,0.00064808,15]
[342990575,1732263767419,-29732.60387939,0.00065,30]
[342990576,1732263773066,500.0,0.00062675,2]
[342990577,1732263773116,645.32861572,0.00063223,2]
[342990578,1732263909197,3078.55932045,0.0001,2]
[342990581,1732263930551,7666.05692871,9.9e-05,2]
[342990582,1732263937126,-161.74,0.00041096,2]
[342990583,1732263937151,-1071.78503816,0.00060223,120]
[342990584,1732263937175,-154.16660845,0.000629,120]
[342990585,1732263955050,167505.81142004,0.00025,2]
[342990586,1732264029096,-1295.01581659,0.0005856,120]
[342990587,1732264031103,-967.13418341,0.0005856,120]
[342990588,1732264031123,-401.83510115,0.000628,12]
[342990589,1732264041094,-954.20286877,0.000628,12]
[342990590,1732264041117,-30.66659409,0.000629,120]
[342990591,1732264049078,-2256.06261639,0.000629,120]
[342990592,1732264074468,524.30588558,0.00013,2]
[342990594,1732264115246,213.05815521,0.0001,2]
[342990595,1732264116029,1038.44401774,0.00027,120]
[342990596,1732264118493,2602.25359494,0.0001,2]
[342990598,1732264123853,166.88709136,0.00027,120]
[342990601,1732264141114,299.99999901,0.0001,2]
[342990602,1732264147083,-200.540405,0.0004,2]
[342990603,1732264147105,-274068.590395,0.000476,30]
[342990604,1732264147130,-1717.07625701,0.000476,30]
[342990605,1732264148119,-102063.8248,0.000476,30]
[342990606,1732264148150,-7110.46007,0.000476,30]
[342990607,1732264149081,-48680.29264,0.000476,30]
[342990608,1732264151140,-408760.2736,0.000476,30]
[342990609,1732264154137,-1945.75995266,0.000476,30]
[342990616,1732264159141,-27040.23644,0.000476,30]
[342990617,1732264161094,-41934.52438,0.000476,30]
[342990620,1732264166096,-41907.50774,0.000476,30]
[342990621,1732264167076,-125695.6624,0.000476,30]
[342990622,1732264173670,-504199.28909267,0.000476,30]
[342990640,1732264231859,-193.82816502,0.00041898,120]
[342990641,1732264231868,-138.49403498,0.000574,28]
[342990642,1732264231881,-36.57224707,0.000574,28]
[342990643,1732264231890,-1592.38872651,0.000575,120]
[342990644,1732264231899,-19227.45756274,0.000629,120]
[342990645,1732264231909,-5205.3265913,0.000629,120]
[342990646,1732264231918,-2497.33777523,0.0006322,120]
[342990647,1732264231927,-162.08,0.00065068,120]
[342990648,1732264231936,-500.0,0.000666,16]
[342990649,1732264231945,-1356.03796992,0.00068939,13]
[342990650,1732264231955,-29252.91826793,0.00069029,2]
[342990651,1732264231965,-1000.0,0.00069038,15]
[342990652,1732264231974,-186.241527,0.00069672,120]
[342990653,1732264231985,-275.449,0.00071511,120]
[342990654,1732264231995,-1948.506,0.00071917,120]
[342990655,1732264232004,-624.426,0.00071917,120]
[342990656,1732264232013,-3768.378,0.00071917,120]
[342990657,1732264232022,-1800.831,0.00071917,120]
[342990658,1732264232031,-886.0,0.00071917,120]
[342990659,1732264232041,-1264.607,0.00071917,120]
[342990660,1732264232050,-570.304,0.00071917,120]
[342990661,1732264232059,-2500.0,0.00077756,120]
[342990662,1732264232070,-1131.8239,0.00077756,2]
[342990663,1732264232079,-175.06628205,0.0007865,28]
[342990664,1732264232089,-250.0,0.00082401,120]
[342990665,1732264232098,-1198.11169336,0.00083309,15]
[342990666,1732264232107,-2959.62,0.00083409,120]
[342990667,1732264232116,-160.0,0.00083484,120]
[342990668,1732264232126,-151.0,0.000839,120]
[342990669,1732264232135,-275.45,0.00084341,120]
[342990670,1732264232144,-150.17,0.00084609,120]
[342990671,1732264232153,-1198.11169328,0.00085152,15]
[342990672,1732264232162,-166.1,0.00086606,2]
[342990673,1732264232172,-191.31,0.00086806,2]
[342990674,1732264232181,-161.49,0.00086819,120]
[342990675,1732264232190,-500.0,0.00086885,120]
[342990676,1732264232199,-1198.11169328,0.00086996,15]
[342990677,1732264232209,-23900.0,0.00088817,30]
[342990678,1732264232218,-1198.11169328,0.00088839,15]
[342990679,1732264232228,-162.08,0.00089041,120]
[342990681,1732264232237,-191.31,0.0008907,2]
[342990683,1732264232247,-1000.0,0.00089999,120]
[342990684,1732264232256,-2496.02171501,0.00090523,7]
[342990685,1732264232266,-1198.11169328,0.00090683,15]
[342990686,1732264232275,-165.45,0.00091292,30]
[342990687,1732264232284,-191.31,0.00091334,2]
[342990688,1732264232294,-3030.39,0.00091922,120]
[342990689,1732264232303,-1198.11169328,0.00092526,15]
[342990690,1732264232314,-191.31,0.00093597,2]
[342990691,1732264232323,-250.0,0.00093709,120]
[342990692,1732264232332,-1198.11169328,0.0009437,15]
[342990693,1732264232341,-998.86,0.00094378,120]
[342990694,1732264232351,-16044.7408,0.0009439,120]
[342990695,1732264232363,-1000.0,0.00094452,120]
[342990696,1732264232372,-24321.15221572,0.000945,15]
[342990697,1732264232381,-3228.52162234,0.000946,120]
[342990698,1732264232393,-300.0,0.000946,120]
[342990699,1732264232404,-1023.6547021,0.000946,120]
[342990700,1732264232415,-839.91554756,0.000946,120]
[342990701,1732264232426,-4955.85790944,0.000946,120]
[342990702,1732264232437,-649.3,0.000946,120]
[342990703,1732264232448,-1294.95,0.000946,120]
[342990704,1732264232460,-3970.13447221,0.000946,120]
[342990707,1732264237759,-5591.40760577,0.000946,120]
[342990708,1732264237926,-379.93207312,0.000946,120]
[342990709,1732264237937,-967.3685856,0.000946,120]
[342990710,1732264237948,-717.82400008,0.000946,120]
[342990711,1732264237984,-24631.37628178,0.000946,120]
[342990712,1732264237994,-2823.6177,0.000946,30]
[342990713,1732264238003,-35351.6675,0.0009469,30]
[342990714,1732264238014,-1000.0,0.00094999,120]
[342990715,1732264238024,-180.58,0.00095023,120]
[342990716,1732264238034,-6030.28111501,0.000951,15]
[342990717,1732264238096,-18290.87110071,0.000951,15]
[342990718,1732264238105,-11747.09041167,0.000957,15]
[342990722,1732264239796,-5013.05798327,0.000957,15]
[342990723,1732264239855,-6665.32962901,0.000957,15]
[342990724,1732264239951,-895.67419177,0.000957,15]
[342990725,1732264239969,-191.31,0.00095861,2]
[342990726,1732264239980,-10000.0,0.00096,120]
[342990727,1732264239989,-1198.11169328,0.00096213,15]
[342990728,1732264239998,-7899.56985555,0.000963,15]
[342990729,1732264240011,-9132.15130186,0.000963,15]
[342990730,1732264240022,-323.14288192,0.000963,15]
[342990731,1732264240034,-890.0021112,0.000963,15]
[342990745,1732264242836,-5973.66840003,0.000963,15]
[342990746,1732264243146,-102.61766516,0.000963,15]
[342990747,1732264243155,-8524.54995467,0.000969,15]
[342990748,1732264243167,-4384.83237945,0.000969,15]
[342990749,1732264243182,-1920.83968252,0.000969,15]
[342990797,1732264245758,-430.655,0.000969,15]
[342990798,1732264245770,-1381.4,0.000969,15]
[342990799,1732264245780,-427.56,0.000969,15]
[342990800,1732264245791,-500.0,0.000969,15]
[342990801,1732264245822,-6751.31519908,0.000969,15]
[342990802,1732264245831,-1089.03351402,0.0009702,120]
[342990803,1732264245840,-112387.0,0.0009703,30]
[342990804,1732264245849,-398.61129943,0.00097131,2]
[342990805,1732264245859,-275.449,0.0009717,120]
[342990806,1732264245868,-24321.15221572,0.000975,15]
[342990807,1732264245877,-398.61129943,0.00097703,2]
[342990808,1732264245886,-202.76791526,0.000979,69]
[342990809,1732264245895,-320.13756823,0.000979,2]
[342990810,1732264245904,-1000.0,0.00097999,120]
[342990811,1732264245918,-65732.93624513,0.00098,120]
[342990812,1732264245927,-4695.63827759,0.00098,120]
[342990813,1732264245936,-44790.0,0.00098,120]
[342990814,1732264245945,-1079.87614,0.0009801,120]
[342990815,1732264245956,-1198.11169328,0.00098057,15]
[342990816,1732264245965,-24321.15221572,0.000981,15]
[342990817,1732264245974,-191.31,0.00098125,2]
[342990818,1732264245983,-320.13756821,0.000984,2]
[342990819,1732264245993,-1000.0,0.00098499,120]
[342990820,1732264246002,-1079.87615,0.0009851,120]
[342990821,1732264246012,-386.52,0.0009863,120]
[342990822,1732264246022,-5198.70334832,0.0009863,120]
[342990823,1732264246030,-501.87812772,0.0009863,120]
[342990824,1732264246039,-502.37395512,0.0009863,120]
[342990825,1732264246049,-500.0,0.0009863,120]
[342990826,1732264246058,-410.04134155,0.0009863,120]
[342990827,1732264246067,-500.0,0.0009863,120]
[342990828,1732264246078,-635.88,0.0009863,120]
[342990829,1732264246087,-500.0,0.0009863,120]